fUSD/lending_fUSD_20241219
["ID","MTS","AMOUNT","RATE_DAILY","PERIOD"]
[345968704,1734575438603,-500.0,0.00021917,4]
[345968705,1734575438613,-900.65,0.00021917,4]
[345968706,1734575438622,-500.0,0.00021917,4]
[345968707,1734575438632,-113.01974875,0.00021917,4]
[345968708,1734575438643,-386.98025125,0.00021917,4]
[345968709,1734575438653,-250.0,0.00021947,2]
[345968710,1734575438663,-216.0,0.00022,2]
[345968711,1734575438672,-495.57,0.00022065,2]
[345968712,1734575438681,-142.43924875,0.00022067,30]
[345968713,1734575438693,-19.15075125,0.00022067,30]
[345968714,1734575438703,-450.31,0.00022094,2]
[345968715,1734575438712,-229.76522348,0.0002211,2]
[345968716,1734575438722,-1123.03,0.00022168,2]
[345968717,1734575438731,-500.0,0.00022191,4]
[345968718,1734575438741,-500.0,0.00022191,4]
[345968719,1734575438753,-500.0,0.00022191,4]
[345968720,1734575438765,-500.0,0.00022191,4]
[345968721,1734575438780,-500.0,0.00022191,4]
[345968722,1734575438793,-500.0,0.00022191,4]
[345968723,1734575438806,-500.0,0.00022191,4]
[345968724,1734575438816,-500.0,0.00022191,4]
[345968725,1734575438830,-500.0,0.00022191,4]
[345968726,1734575438842,-1223.41,0.00022191,4]
[345968727,1734575438855,-500.0,0.00022191,4]
[345968728,1734575438867,-1146.16,0.00022191,4]
[345968729,1734575438879,-500.0,0.00022191,4]
[345968730,1734575438892,-254.16603683,0.00022191,4]
[345968731,1734575438905,-402.72001392,0.00022191,4]
[345968733,1734575438919,-500.0,0.00022191,4]
[345968735,1734575438931,-500.0,0.00022191,4]
[345968738,1734575438944,-500.0,0.00022191,4]
[345968740,1734575438956,-500.0,0.00022191,4]
[345968741,1734575438968,-500.0,0.00022191,4]
[345968742,1734575438981,-500.0,0.00022191,4]
[345968743,1734575438995,-500.0,0.00022191,4]
[345968744,1734575439008,-500.0,0.00022191,4]
[345968745,1734575439020,-633.35,0.00022191,4]
[345968746,1734575439032,-500.0,0.00022191,4]
[345968747,1734575439044,-500.0,0.00022191,4]
[345968748,1734575439056,-500.0,0.00022191,4]
[345968749,1734575439071,-500.0,0.00022191,4]
[345968750,1734575439082,-614.51,0.00022191,4]
[345968751,1734575439093,-500.0,0.00022191,4]
[345968752,1734575439104,-500.0,0.00022191,4]
[345968753,1734575439116,-793.7,0.00022191,4]
[345968754,1734575439129,-500.0,0.00022191,4]
[345968755,1734575439140,-500.0,0.00022191,4]
[345968756,1734575439151,-500.0,0.00022191,4]
[345968757,1734575439163,-939.73,0.00022191,4]
[345968758,1734575439174,-500.0,0.00022191,4]
[345968759,1734575439185,-619.82,0.00022191,4]
[345968760,1734575439196,-500.0,0.00022191,4]
[345968761,1734575439207,-500.0,0.00022191,4]
[345968762,1734575439220,-500.0,0.00022191,4]
[345968763,1734575439230,-500.0,0.00022191,4]
[345968764,1734575439243,-500.0,0.00022191,4]
[345968765,1734575439253,-500.0,0.00022191,4]
[345968766,1734575439265,-500.0,0.00022191,4]
[345968767,1734575439276,-500.0,0.00022191,4]
[345968768,1734575439286,-500.0,0.00022191,4]
[345968769,1734575439297,-541.26,0.00022191,4]
[345968770,1734575439308,-500.0,0.00022191,4]
[345968771,1734575439321,-500.0,0.00022191,4]
[345968772,1734575439334,-500.0,0.00022191,4]
[345968773,1734575439349,-500.0,0.00022191,4]
[345968774,1734575439359,-830.13,0.00022191,4]
[345968775,1734575439369,-500.0,0.00022191,4]
[345968776,1734575439379,-900.65,0.00022191,4]
[345968777,1734575439390,-500.0,0.00022191,4]
[345968778,1734575439401,-500.0,0.00022191,4]
[345968779,1734575439413,-216.0,0.00022192,2]
[345968780,1734575439425,-1000.0,0.00022312,2]
[345968781,1734575439442,-583.71,0.00022343,2]
[345968782,1734575439454,-609.65640879,0.00022434,2]
[345968783,1734575439465,-500.0,0.00022464,4]
[345968784,1734575439477,-688.73,0.00022464,4]
[345968785,1734575439487,-515.37,0.00022464,4]
[345968786,1734575439498,-1309.011231,0.00022464,4]
[345968787,1734575439509,-34369.754151,0.00022464,4]
[345968788,1734575439521,-22797.905194,0.00022464,4]
[345968789,1734575439535,-6727.94831439,0.00022464,2]
[345968790,1734575439546,-1205.98,0.00022464,4]
[345968791,1734575439556,-500.0,0.00022464,4]
[345968792,1734575439571,-638.66,0.00022464,4]
[345968793,1734575439582,-500.0,0.00022464,4]
[345968794,1734575439593,-674.56,0.00022464,4]
[345968795,1734575439605,-500.0,0.00022464,4]
[345968796,1734575439617,-500.0,0.00022464,4]
[345968797,1734575439628,-500.0,0.00022464,4]
[345968798,1734575439640,-745.87,0.00022464,4]
[345968799,1734575439650,-180.99279533,0.00022464,4]
[345968800,1734575439661,-706.14,0.00022464,4]
[345968801,1734575439672,-500.0,0.00022464,4]
[345968802,1734575439683,-1392.93,0.00022464,4]
[345968803,1734575439694,-1156.66,0.00022464,4]
[345968804,1734575439705,-500.0,0.00022464,4]
[345968805,1734575439716,-3037.83,0.00022464,4]
[345968806,1734575439727,-500.0,0.00022464,4]
[345968807,1734575439738,-500.0,0.00022464,4]
[345968808,1734575439748,-777.94,0.00022464,4]
[345968809,1734575439760,-500.0,0.00022464,4]
[345968810,1734575439771,-659.6,0.00022464,4]
[345968811,1734575439782,-771.09,0.00022464,4]
[345968812,1734575439794,-500.0,0.00022465,4]
[345968813,1734575439805,-500.0,0.00022465,4]
[345968814,1734575439815,-500.0,0.00022465,4]
[345968815,1734575439829,-622.16117054,0.00022465,4]
[345968816,1734575439840,-500.0,0.00022465,4]
[345968817,1734575439851,-500.0,0.00022465,4]
[345968818,1734575439863,-500.0,0.00022465,4]
[345968819,1734575439874,-500.0,0.00022465,4]
[345968820,1734575439886,-1223.41,0.00022465,4]
[345968821,1734575439898,-281.82548929,0.00022465,4]
[345968822,1734575439910,-1146.16,0.00022465,4]
[345968823,1734575439922,-500.0,0.00022465,4]
[345968824,1734575439934,-500.0,0.00022465,4]
[345968825,1734575439946,-500.0,0.00022465,4]
[345968826,1734575439957,-500.0,0.00022465,4]
[345968827,1734575439968,-500.0,0.00022465,4]
[345968828,1734575439980,-500.0,0.00022465,4]
[345968829,1734575439990,-500.0,0.00022465,4]
[345968830,1734575440001,-500.0,0.00022465,4]
[345968831,1734575440012,-633.35,0.00022465,4]
[345968832,1734575440023,-500.0,0.00022465,4]
[345968833,1734575440034,-500.0,0.00022465,4]
[345968834,1734575440045,-386.21701829,0.00022465,4]
[345968835,1734575440056,-614.51,0.00022465,4]
[345968836,1734575440071,-500.0,0.00022465,4]
[345968837,1734575440082,-793.7,0.00022465,4]
[345968838,1734575440093,-500.0,0.00022465,4]
[345968839,1734575440104,-500.0,0.00022465,4]
[345968840,1734575440116,-939.73,0.00022465,4]
[345968841,1734575440128,-500.0,0.00022465,4]
[345968842,1734575440139,-619.82,0.00022465,4]
[345968843,1734575440150,-500.0,0.00022465,4]
[345968844,1734575440161,-500.0,0.00022465,4]
[345968845,1734575440173,-500.0,0.00022465,4]
[345968846,1734575440184,-500.0,0.00022465,4]
[345968847,1734575440196,-500.0,0.00022465,4]
[345968848,1734575440207,-500.0,0.00022465,4]
[345968850,1734575440219,-500.0,0.00022465,4]
[345968851,1734575440229,-500.0,0.00022465,4]
[345968852,1734575440241,-500.0,0.00022465,4]
[345968853,1734575440251,-541.26,0.00022465,4]
[345968854,1734575440262,-500.0,0.00022465,4]
[345968855,1734575440273,-500.0,0.00022465,4]
[345968856,1734575440284,-500.0,0.00022465,4]
[345968857,1734575440295,-500.0,0.00022465,4]
[345968858,1734575440306,-830.13,0.00022465,4]
[345968859,1734575440322,-500.0,0.00022465,4]
[345968860,1734575440333,-900.65,0.00022465,4]
[345968861,1734575440344,-500.0,0.00022465,4]
[345968862,1734575440355,-500.0,0.00022465,4]
[345968863,1734575440366,-150.0,0.00022488,4]
[345968864,1734575440377,-150.0,0.00022488,4]
[345968865,1734575440389,-151.92192798,0.00022488,4]
[345968866,1734575440400,-151.28937052,0.00022488,4]
[345968867,1734575440411,-150.0,0.00022488,4]
[345968868,1734575440422,-150.34346138,0.00022488,4]
[345968869,1734575440436,-150.5109344,0.00022488,4]
[345968870,1734575440447,-150.60620539,0.00022488,4]
[345968871,1734575440458,-260.71261928,0.00022488,4]
[345968872,1734575440469,-151.72891447,0.00022488,4]
[345968873,1734575440481,-1732.59424918,0.00022638,2]
[345968874,1734575440492,-1662.3366,0.00022639,2]
[345968875,1734575440503,-500.0,0.00022737,4]
[345968876,1734575440517,-501.47512749,0.00022737,4]
[345968877,1734575440531,-500.0,0.00022737,4]
[345968878,1734575440542,-500.0,0.00022737,4]
[345968879,1734575440553,-500.0,0.00022737,4]
[345968880,1734575440563,-556.45,0.00022737,4]
[345968881,1734575440579,-500.0,0.00022737,4]
[345968882,1734575440591,-500.0,0.00022737,4]
[345968883,1734575440602,-670.5,0.00022737,4]
[345968884,1734575440612,-1234.71,0.00022737,4]
[345968885,1734575440624,-640.83150338,0.00022737,4]
[345968886,1734575440634,-500.0,0.00022737,4]
[345968887,1734575440645,-646.15,0.00022737,4]
[345968888,1734575440656,-534.78,0.00022737,4]
[345968889,1734575440667,-500.0,0.00022737,4]
[345968890,1734575440678,-500.0,0.00022737,4]
[345968891,1734575440689,-500.0,0.00022737,4]
[345968892,1734575440700,-1617.63,0.00022737,4]
[345968893,1734575440711,-500.0,0.00022737,4]
[345968894,1734575440723,-500.0,0.00022737,4]
[345968895,1734575440734,-500.0,0.00022737,4]
[345968896,1734575440745,-500.0,0.00022737,4]
[345968897,1734575440756,-500.0,0.00022737,4]
[345968898,1734575440766,-500.0,0.00022737,4]
[345968899,1734575440777,-500.0,0.00022737,4]
[345968900,1734575440788,-879.76,0.00022737,4]
[345968901,1734575440799,-525.61,0.00022737,4]
[345968902,1734575440810,-500.0,0.00022738,4]
[345968903,1734575440824,-1185.63,0.00022738,4]
[345968904,1734575440835,-1014.42,0.00022738,4]
[345968905,1734575440846,-500.0,0.00022738,4]
[345968906,1734575440857,-510.76,0.00022738,4]
[345968908,1734575440867,-506.28,0.00022738,4]
[345968910,1734575440877,-513.13040919,0.00022738,4]
[345968912,1734575440886,-500.0,0.00022738,4]
[345968913,1734575440896,-683.69,0.00022738,4]
[345968915,1734575440905,-500.0,0.00022738,4]
[345968917,1734575440915,-650.27,0.00022738,4]
[345968918,1734575440925,-500.0,0.00022738,4]
[345968919,1734575440934,-500.0,0.00022738,4]
[345968920,1734575440943,-1260.38,0.00022738,4]
[345968921,1734575440953,-500.0,0.00022738,4]
[345968922,1734575440962,-500.0,0.00022738,4]
[345968923,1734575440973,-500.0,0.00022738,4]
[345968924,1734575440982,-500.0,0.00022738,4]
[345968925,1734575440991,-500.0,0.00022738,4]
[345968926,1734575441001,-500.0,0.00022738,4]
[345968927,1734575441010,-500.0,0.00022738,4]
[345968928,1734575441315,-500.0,0.00022738,4]
[345968929,1734575441339,-633.11,0.00022738,4]
[345968930,1734575441353,-521.25057242,0.00022738,4]
[345968931,1734575441362,-500.0,0.00022738,4]
[345968932,1734575441371,-500.0,0.00022738,4]
[345968933,1734575441380,-500.0,0.00022738,4]
[345968934,1734575441389,-448.29736506,0.00022738,4]
[345968935,1734575441399,-659.75,0.00022738,4]
[345968936,1734575441408,-538.89669257,0.00022738,4]
[345968937,1734575441416,-500.0,0.00022738,4]
[345968938,1734575441426,-500.0,0.00022738,4]
[345968939,1734575441439,-500.0,0.00022738,4]
[345968940,1734575441448,-500.0,0.00022738,4]
[345968941,1734575441457,-844.34,0.00022738,4]
[345968942,1734575441466,-500.0,0.00022738,4]
[345968943,1734575441476,-794.86,0.00022738,4]
[345968944,1734575441486,-500.0,0.00022738,4]
[345968945,1734575441495,-348.95785822,0.00022738,4]
[345968946,1734575441504,-500.0,0.00022738,4]
[345968947,1734575441514,-500.0,0.00022738,4]
[345968948,1734575441524,-337.16578975,0.00022738,4]
[345968949,1734575441534,-666.98,0.00022738,4]
[345968950,1734575441543,-983.5,0.00022738,4]
[345968951,1734575441551,-505.28193788,0.00022738,4]
[345968952,1734575441561,-500.0,0.00022738,4]
[345968953,1734575441574,-997.27,0.00022738,4]
[345968954,1734575441583,-578.02,0.00022738,4]
[345968955,1734575441592,-500.0,0.00022738,4]
[345968956,1734575441602,-500.0,0.00022738,4]
[345968957,1734575441612,-500.0,0.00022738,4]
[345968958,1734575441621,-500.0,0.00022738,4]
[345968959,1734575441630,-500.0,0.00022738,4]
[345968960,1734575441639,-500.0,0.00022738,4]
[345968961,1734575441648,-500.0,0.00022738,4]
[345968962,1734575441657,-500.0,0.00022738,4]
[345968963,1734575441667,-500.0,0.00022738,4]
[345968964,1734575441676,-500.0,0.00022738,4]
[345968965,1734575441686,-517.88,0.00022738,4]
[345968966,1734575441695,-537.74,0.00022738,4]
[345968967,1734575441705,-500.0,0.00022738,4]
[345968968,1734575441714,-688.73,0.00022738,4]
[345968969,1734575441724,-515.37,0.00022738,4]
[345968970,1734575441733,-500.0,0.00022738,4]
[345968971,1734575441745,-747.99,0.00022738,4]
[345968972,1734575441754,-711.86,0.00022738,4]
[345968973,1734575441763,-1205.98,0.00022738,4]
[345968974,1734575441773,-844.19,0.00022738,4]
[345968975,1734575441782,-500.0,0.00022738,4]
[345968976,1734575441792,-500.0,0.00022738,4]
[345968977,1734575441801,-500.0,0.00022738,4]
[345968978,1734575441810,-546.98,0.00022738,4]
[345968979,1734575441823,-638.66,0.00022738,4]
[345968980,1734575441833,-601.44,0.00022738,4]
[345968981,1734575441842,-500.0,0.00022738,4]
[345968982,1734575441851,-500.0,0.00022738,4]
[345968983,1734575441860,-674.56,0.00022738,4]
[345968984,1734575441870,-500.0,0.00022738,4]
[345968985,1734575441879,-592.56,0.00022738,4]
[345968986,1734575441888,-500.0,0.00022738,4]
[345968987,1734575441899,-500.0,0.00022738,4]
[345968988,1734575441908,-549.06,0.00022738,4]
[345968989,1734575441917,-500.0,0.00022738,4]
[345968990,1734575441927,-1298.92,0.00022738,4]
[345968991,1734575441936,-500.0,0.00022738,4]
[345968992,1734575441946,-745.87,0.00022738,4]
[345968993,1734575441956,-567.54,0.00022738,4]
[345968994,1734575441966,-706.14,0.00022738,4]
[345968995,1734575441975,-500.0,0.00022738,4]
[345968996,1734575441985,-500.0,0.00022738,4]
[345968997,1734575441994,-1358.02,0.00022738,4]
[345968998,1734575442005,-500.0,0.00022738,4]
[345968999,1734575442015,-647.12,0.00022738,4]
[345969000,1734575442024,-1392.93,0.00022738,4]
[345969001,1734575442033,-1156.66,0.00022738,4]
[345969002,1734575442043,-556.94,0.00022738,4]
[345969003,1734575442052,-500.0,0.00022738,4]
[345969004,1734575442061,-1952.75,0.00022738,4]
[345969005,1734575442075,-500.0,0.00022738,4]
[345969006,1734575442084,-1097.97,0.00022738,4]
[345969007,1734575442094,-500.0,0.00022738,4]
[345969008,1734575442103,-1671.99,0.00022738,4]
[345969009,1734575442113,-500.0,0.00022738,4]
[345969010,1734575442122,-500.0,0.00022738,4]
[345969011,1734575442132,-500.0,0.00022738,4]
[345969012,1734575442142,-3037.83,0.00022738,4]
[345969013,1734575442151,-560.72,0.00022738,2]
[345969014,1734575442160,-796.04,0.00022738,4]
[345969015,1734575442170,-500.0,0.00022738,4]
[345969016,1734575442179,-500.0,0.00022738,4]
[345969017,1734575442189,-500.0,0.00022738,4]
[345969018,1734575442199,-1572.13,0.00022738,4]
[345969019,1734575442208,-500.0,0.00022738,4]
[345969020,1734575442217,-500.0,0.00022738,4]
[345969021,1734575442226,-500.0,0.00022738,4]
[345969022,1734575442235,-500.0,0.00022738,4]
[345969023,1734575442243,-500.0,0.00022738,4]
[345969024,1734575442254,-553.51,0.00022738,4]
[345969025,1734575442263,-500.0,0.00022738,4]
[345969026,1734575442273,-540.82,0.00022738,4]
[345969027,1734575442282,-777.94,0.00022738,4]
[345969028,1734575442292,-500.0,0.00022738,4]
[345969029,1734575442301,-500.0,0.00022738,4]
[345969030,1734575442310,-900.42,0.00022738,4]
[345969031,1734575442322,-659.6,0.00022738,4]
[345969032,1734575442332,-771.09,0.00022738,4]
[345969033,1734575442342,-500.0,0.00022738,4]
[345969034,1734575442354,-500.0,0.00022739,4]
[345969035,1734575442365,-500.0,0.00022739,4]
[345969036,1734575442375,-543.68957601,0.00022739,4]
[345969037,1734575442384,-500.0,0.00022739,4]
[345969038,1734575442394,-500.0,0.00022739,4]
[345969039,1734575442405,-500.0,0.00022739,4]
[345969040,1734575442414,-500.0,0.00022739,4]
[345969041,1734575442424,-1223.41,0.00022739,4]
[345969042,1734575442434,-1146.16,0.00022739,4]
[345969043,1734575442447,-500.0,0.00022739,4]
[345969044,1734575442457,-500.0,0.00022739,4]
[345969045,1734575442467,-500.0,0.00022739,4]
[345969046,1734575442477,-500.0,0.00022739,4]
[345969047,1734575442486,-500.0,0.00022739,4]
[345969048,1734575442500,-500.0,0.00022739,4]
[345969049,1734575442509,-500.0,0.00022739,4]
[345969050,1734575442519,-464.12832563,0.00022739,4]
[345969051,1734575442529,-633.35,0.00022739,4]
[345969052,1734575442539,-500.0,0.00022739,4]
[345969053,1734575442548,-500.0,0.00022739,4]
[345969054,1734575442558,-614.51,0.00022739,4]
[345969055,1734575442570,-500.0,0.00022739,4]
[345969056,1734575442581,-793.7,0.00022739,4]
[345969057,1734575442590,-500.0,0.00022739,4]
[345969058,1734575442600,-500.0,0.00022739,4]
[345969059,1734575442610,-939.73,0.00022739,4]
[345969060,1734575442619,-500.0,0.00022739,4]
[345969061,1734575442629,-619.82,0.00022739,4]
[345969062,1734575442639,-469.5,0.00022739,4]
[345969063,1734575442649,-500.0,0.00022739,4]
[345969064,1734575442658,-500.0,0.00022739,4]
[345969065,1734575442668,-500.0,0.00022739,4]
[345969066,1734575442678,-500.0,0.00022739,4]
[345969067,1734575442687,-500.0,0.00022739,4]
[345969068,1734575442697,-500.0,0.00022739,4]
[345969069,1734575442709,-500.0,0.00022739,4]
[345969070,1734575442720,-500.0,0.00022739,4]
[345969071,1734575442729,-541.26,0.00022739,4]
[345969072,1734575442739,-500.0,0.00022739,4]
[345969073,1734575442748,-500.0,0.00022739,4]
[345969074,1734575442759,-500.0,0.00022739,4]
[345969075,1734575442770,-590.41972433,0.00022739,4]
[345969076,1734575442780,-830.13,0.00022739,4]
[345969077,1734575442790,-500.0,0.00022739,4]
[345969078,1734575442801,-900.65,0.00022739,4]
[345969079,1734575442811,-500.0,0.00022739,4]
[345969080,1734575442826,-500.0,0.00022739,4]
[345969081,1734575442836,-1732.59424916,0.00022778,2]
[345969082,1734575442845,-200.0,0.00022847,2]
[345969083,1734575442855,-358.94,0.0002285,2]
[345969084,1734575442864,-1058.851,0.0002285,2]
[345969085,1734575442874,-160.762,0.0002285,2]
[345969086,1734575442884,-150.0,0.00022904,4]
[345969087,1734575442894,-150.0,0.00022904,4]
[345969088,1734575442904,-1000.0,0.00022913,2]
[345969089,1734575442914,-1732.59424916,0.00022918,2]
[345969090,1734575442923,-1123.03,0.00022959,2]
[345969091,1734575442933,-500.0,0.00023011,4]
[345969092,1734575442943,-500.0,0.00023011,4]
[345969093,1734575442953,-500.0,0.00023011,4]
[345969094,1734575442963,-500.0,0.00023011,4]
[345969095,1734575442972,-603.52,0.00023011,4]
[345969096,1734575442982,-500.0,0.00023011,4]
[345969097,1734575442991,-670.5,0.00023011,4]
[345969098,1734575443001,-1234.71,0.00023011,4]
[345969099,1734575443010,-500.0,0.00023011,4]
[345969100,1734575443019,-646.15,0.00023011,4]
[345969101,1734575443029,-534.78,0.00023011,4]
[345969102,1734575443038,-500.0,0.00023011,4]
[345969103,1734575443047,-500.0,0.00023011,4]
[345969104,1734575443057,-500.0,0.00023011,4]
[345969106,1734575443067,-1617.63,0.00023011,4]
[345969107,1734575443079,-500.0,0.00023011,4]
[345969108,1734575443088,-500.0,0.00023011,4]
[345969109,1734575443098,-500.0,0.00023011,4]
[345969110,1734575443107,-500.0,0.00023011,4]
[345969111,1734575443117,-500.0,0.00023011,4]
[345969112,1734575443126,-169.52645077,0.00023011,4]
[345969113,1734575443136,-500.0,0.00023011,4]
[345969114,1734575443146,-879.76,0.00023011,4]
[345969115,1734575443155,-525.61,0.00023011,4]
[345969116,1734575443165,-500.0,0.00023012,4]
[345969117,1734575443175,-1185.63,0.00023012,4]
[345969118,1734575443184,-1014.42,0.00023012,4]
[345969119,1734575443193,-500.0,0.00023012,4]
[345969120,1734575443203,-510.76,0.00023012,4]
[345969121,1734575443212,-506.28,0.00023012,4]
[345969122,1734575443222,-500.0,0.00023012,4]
[345969123,1734575443231,-683.69,0.00023012,4]
[345969124,1734575443240,-500.0,0.00023012,4]
[345969125,1734575443250,-650.27,0.00023012,4]
[345969128,1734575443260,-500.0,0.00023012,4]
[345969131,1734575443270,-500.0,0.00023012,4]
[345969135,1734575443279,-1260.38,0.00023012,4]
[345969138,1734575443288,-500.0,0.00023012,4]
[345969143,1734575443298,-500.0,0.00023012,4]
[345969146,1734575443307,-500.0,0.00023012,4]
[345969148,1734575443316,-500.0,0.00023012,4]
[345969149,1734575443328,-500.0,0.00023012,4]
[345969151,1734575443337,-500.0,0.00023012,4]
[345969153,1734575443347,-500.0,0.00023012,4]
[345969155,1734575443356,-500.0,0.00023012,4]
[345969157,1734575443366,-633.11,0.00023012,4]
[345969159,1734575443375,-587.59879125,0.00023012,4]
[345969161,1734575443384,-500.0,0.00023012,4]
[345969163,1734575443394,-500.0,0.00023012,4]
[345969165,1734575443403,-659.75,0.00023012,4]
[345969167,1734575443412,-500.0,0.00023012,4]
[345969169,1734575443421,-500.0,0.00023012,4]
[345969171,1734575443432,-500.0,0.00023012,4]
[345969173,1734575443443,-500.0,0.00023012,4]
[345969175,1734575443452,-844.34,0.00023012,4]
[345969177,1734575443461,-500.0,0.00023012,4]
[345969179,1734575443471,-794.86,0.00023012,4]
[345969181,1734575443480,-500.0,0.00023012,4]
[345969183,1734575443489,-666.98,0.00023012,4]
[345969184,1734575443499,-983.5,0.00023012,4]
[345969185,1734575443509,-463.99755886,0.00023012,4]
[345969186,1734575443518,-997.27,0.00023012,4]
[345969187,1734575443528,-578.02,0.00023012,4]
[345969188,1734575443537,-500.0,0.00023012,4]
[345969189,1734575443547,-500.0,0.00023012,4]
[345969190,1734575443556,-166.09092186,0.00023012,4]
[345969191,1734575443565,-500.0,0.00023012,4]
[345969192,1734575443579,-500.0,0.00023012,4]
[345969193,1734575443588,-500.0,0.00023012,4]
[345969194,1734575443597,-500.0,0.00023012,4]
[345969195,1734575443606,-500.0,0.00023012,4]
[345969196,1734575443615,-229.73482548,0.00023012,4]
[345969197,1734575443624,-517.88,0.00023012,4]
[345969198,1734575443633,-537.74,0.00023012,4]
[345969199,1734575443642,-688.73,0.00023012,4]
[345969200,1734575443651,-515.37,0.00023012,4]
[345969201,1734575443660,-213.4,0.00023012,4]
[345969202,1734575443670,-747.99,0.00023012,4]
[345969203,1734575443679,-711.86,0.00023012,4]
[345969204,1734575443689,-1205.98,0.00023012,4]
[345969205,1734575443698,-844.19,0.00023012,4]
[345969206,1734575443708,-500.0,0.00023012,4]
[345969207,1734575443717,-500.0,0.00023012,4]
[345969208,1734575443727,-500.0,0.00023012,4]
[345969209,1734575443737,-546.98,0.00023012,4]
[345969210,1734575443747,-638.66,0.00023012,4]
[345969211,1734575443756,-601.44,0.00023012,4]
[345969212,1734575443766,-500.0,0.00023012,4]
[345969213,1734575443776,-500.0,0.00023012,4]
[345969214,1734575443785,-674.56,0.00023012,4]
[345969215,1734575443795,-500.0,0.00023012,4]
[345969216,1734575443805,-592.56,0.00023012,4]
[345969217,1734575443815,-500.0,0.00023012,4]
[345969218,1734575443828,-500.0,0.00023012,4]
[345969219,1734575443838,-549.06,0.00023012,4]
[345969220,1734575443847,-500.0,0.00023012,4]
[345969221,1734575443856,-1298.92,0.00023012,4]
[345969222,1734575443866,-500.0,0.00023012,4]
[345969223,1734575443876,-745.87,0.00023012,4]
[345969225,1734575443886,-567.54,0.00023012,4]
[345969226,1734575443895,-706.14,0.00023012,4]
[345969228,1734575443905,-500.0,0.00023012,4]
[345969230,1734575443915,-500.0,0.00023012,4]
[345969232,1734575443924,-1358.02,0.00023012,4]
[345969233,1734575443934,-500.0,0.00023012,4]
[345969234,1734575443943,-647.12,0.00023012,4]
[345969235,1734575443954,-1392.93,0.00023012,4]
[345969236,1734575443963,-1156.66,0.00023012,4]
[345969237,1734575443972,-556.94,0.00023012,4]
[345969238,1734575443982,-500.0,0.00023012,4]
[345969239,1734575443991,-1952.75,0.00023012,4]
[345969240,1734575444001,-500.0,0.00023012,4]
[345969241,1734575444010,-1097.97,0.00023012,4]
[345969242,1734575444019,-500.0,0.00023012,4]
[345969243,1734575444029,-1671.99,0.00023012,4]
[345969244,1734575444038,-500.0,0.00023012,4]
[345969245,1734575444048,-500.0,0.00023012,4]
[345969246,1734575444058,-500.0,0.00023012,4]
[345969247,1734575444067,-3037.83,0.00023012,4]
[345969248,1734575444081,-560.72,0.00023012,2]
[345969249,1734575444090,-796.04,0.00023012,4]
[345969250,1734575444099,-500.0,0.00023012,4]
[345969251,1734575444108,-500.0,0.00023012,4]
[345969254,1734575444118,-500.0,0.00023012,4]